fUST/lending_fUST_20250730
["ID","MTS","AMOUNT","RATE_DAILY","PERIOD"]
[376018511,1753823440314,-472.47,0.00019461,2]
[376018513,1753823440323,-456.43,0.00019462,2]
[376018515,1753823440333,-460.0,0.00019462,2]
[376018517,1753823440342,-460.0,0.00019462,2]
[376018519,1753823440351,-460.0,0.00019462,2]
[376018521,1753823440361,-460.0,0.00019462,2]
[376018523,1753823440370,-460.0,0.00019462,2]
[376018525,1753823440381,-562.0,0.00019462,2]
[376018527,1753823440390,-460.0,0.00019462,2]
[376018529,1753823440399,-460.0,0.00019462,2]
[376018531,1753823440409,-460.0,0.00019462,2]
[376018533,1753823440418,-460.0,0.00019462,2]
[376018535,1753823440426,-460.0,0.00019462,2]
[376018537,1753823440436,-460.0,0.00019462,2]
[376018539,1753823440445,-460.0,0.00019462,2]
[376018541,1753823440455,-1162.64,0.00019462,2]
[376018543,1753823440464,-1311.32,0.00019462,2]
[376018545,1753823440473,-460.0,0.00019462,2]
[376018547,1753823440482,-460.0,0.0001956,2]
[376018549,1753823440493,-460.0,0.0001956,2]
[376018551,1753823440502,-460.0,0.0001956,2]
[376018553,1753823440512,-496.69,0.0001956,2]
[376018555,1753823440521,-876.93,0.0001956,2]
[376018557,1753823440531,-460.0,0.0001956,2]
[376018559,1753823440540,-776.03,0.0001956,2]
[376018561,1753823440549,-460.0,0.00019561,2]
[376018563,1753823440559,-372.07887833,0.00019561,2]
[376018565,1753823440568,-4300.5,0.00019561,2]
[376018567,1753823440578,-936.8,0.00019561,2]
[376018568,1753823440587,-909.65,0.00019561,2]
[376018569,1753823440600,-914.91,0.00019562,2]
[376018570,1753823440612,-825.46,0.00019562,2]
[376018571,1753823440624,-1223.64,0.00019563,2]
[376018572,1753823440636,-460.0,0.00019563,2]
[376018573,1753823440648,-500.0,0.00019695,2]
[376018574,1753823440660,-500.0,0.00019734,2]
[376018575,1753823440670,-500.0,0.00019734,2]
[376018576,1753823440681,-500.0,0.00019734,2]
[376018577,1753823440691,-500.0,0.00019734,2]
[376018578,1753823440703,-500.0,0.00019734,2]
[376018579,1753823440715,-617.66335404,0.00019734,2]
[376018580,1753823440730,-500.0,0.00019734,2]
[376018581,1753823440741,-500.0,0.00019734,2]
[376018582,1753823440752,-167.21160255,0.00019734,2]
[376018583,1753823440763,-500.0,0.00019734,2]
[376018584,1753823440774,-500.0,0.00019734,2]
[376018585,1753823440786,-313.48992699,0.00019734,2]
[376018586,1753823440797,-500.0,0.00019734,2]
[376018587,1753823440808,-500.0,0.00019734,2]
[376018588,1753823440820,-500.0,0.00019734,2]
[376018590,1753823440832,-500.0,0.00019734,2]
[376018591,1753823440843,-500.0,0.00019734,2]
[376018594,1753823440855,-500.0,0.00019734,2]
[376018596,1753823440866,-500.0,0.00019734,2]
[376018598,1753823440876,-265.05690256,0.00019734,2]
[376018600,1753823440887,-1851.99,0.00019735,2]
[376018602,1753823440898,-460.0,0.00019735,2]
[376018604,1753823440910,-4197.13,0.00019735,2]
[376018607,1753823440921,-1495.74,0.00019735,2]
[376018609,1753823440931,-778.11,0.00019735,2]
[376018611,1753823440942,-226.10895748,0.00019735,2]
[376018613,1753823440953,-460.0,0.00019735,2]
[376018615,1753823440965,-994.24,0.00019735,2]
[376018617,1753823440977,-460.0,0.00019735,2]
[376018619,1753823440988,-1049.81,0.00019735,2]
[376018622,1753823441000,-472.47,0.00019735,2]
[376018624,1753823441015,-460.0,0.00019736,2]
[376018626,1753823441033,-460.0,0.00019736,2]
[376018628,1753823441042,-460.0,0.00019736,2]
[376018630,1753823441052,-460.0,0.00019736,2]
[376018632,1753823441062,-290.77839354,0.00019736,2]
[376018703,1753823441735,-460.0,0.00019188,2]
[376018705,1753823441747,-169.22160646,0.00019736,2]
[376018707,1753823441757,-562.0,0.00019736,2]
[376018709,1753823441768,-460.0,0.00019736,2]
[376018711,1753823441779,-460.0,0.00019736,2]
[376018713,1753823441789,-460.0,0.00019736,2]
[376018716,1753823441800,-460.0,0.00019736,2]
[376018718,1753823441810,-460.0,0.00019736,2]
[376018720,1753823441821,-460.0,0.00019736,2]
[376018722,1753823441831,-460.0,0.00019736,2]
[376018724,1753823441842,-1162.64,0.00019736,2]
[376018726,1753823441853,-1311.32,0.00019736,2]
[376018729,1753823441865,-460.0,0.00019736,2]
[376018731,1753823441876,-500.0,0.00019767,2]
[376018733,1753823441886,-800.0,0.00019782,2]
[376018735,1753823441896,-157.975555,0.00019791,2]
[376018737,1753823441907,-1501.5,0.00019804,3]
[376018739,1753823441919,-160.0,0.00019809,2]
[376018741,1753823441930,-260.13,0.00019823,3]
[376018743,1753823441940,-780.43,0.00019823,3]
[376018746,1753823441951,-460.0,0.00019834,2]
[376018748,1753823441962,-460.0,0.00019834,2]
[376018750,1753823441972,-460.0,0.00019834,2]
[376018752,1753823441983,-496.69,0.00019834,2]
[376018754,1753823441994,-876.93,0.00019834,2]
[376018756,1753823442005,-460.0,0.00019834,2]
[376018758,1753823442016,-776.03,0.00019834,2]
[376018760,1753823442027,-4300.5,0.00019835,2]
[376018763,1753823442039,-936.8,0.00019835,2]
[376018765,1753823442049,-909.65,0.00019835,2]
[376018767,1753823442060,-914.91,0.00019836,2]
[376018769,1753823442072,-825.46,0.00019836,2]
[376018771,1753823442083,-1223.64,0.00019837,2]
[376018773,1753823442095,-460.0,0.00019837,2]
[376018775,1753823442105,-404.0,0.00019886,2]
[376018777,1753823442116,-1002.42279,0.000199,2]
[376018779,1753823442127,-902.50960051,0.000199,2]
[376018782,1753823442139,-536.11900982,0.00019976,2]
[376018784,1753823442149,-500.0,0.00019976,2]
[376018786,1753823442160,-1851.99,0.00020009,2]
[376018788,1753823442171,-460.0,0.00020009,2]
[376018791,1753823442181,-4197.13,0.00020009,2]
[376018794,1753823442192,-1495.74,0.00020009,2]
[376018797,1753823442203,-778.11,0.00020009,2]
[376018800,1753823442214,-460.0,0.00020009,2]
[376018803,1753823442225,-994.24,0.00020009,2]
[376018807,1753823442236,-460.0,0.00020009,2]
[376018810,1753823442247,-1049.81,0.00020009,2]
[376018814,1753823442257,-472.47,0.00020009,2]
[376018817,1753823442268,-460.0,0.0002001,2]
[376018820,1753823442279,-460.0,0.0002001,2]
[376018823,1753823442289,-460.0,0.0002001,2]
[376018826,1753823442300,-460.0,0.0002001,2]
[376018829,1753823442310,-460.0,0.0002001,2]
[376018832,1753823442320,-562.0,0.0002001,2]
[376018835,1753823442333,-460.0,0.0002001,2]
[376018838,1753823442347,-460.0,0.0002001,2]
[376018841,1753823442358,-460.0,0.0002001,2]
[376018845,1753823442369,-460.0,0.0002001,2]
[376018848,1753823442380,-460.0,0.0002001,2]
[376018851,1753823442390,-460.0,0.0002001,2]
[376018854,1753823442400,-460.0,0.0002001,2]
[376018856,1753823442409,-1162.64,0.0002001,2]
[376018858,1753823442419,-1311.32,0.0002001,2]
[376018860,1753823442428,-524.16314378,0.0002001,2]
[376018862,1753823442438,-460.0,0.0002001,2]
[376018864,1753823442447,-902.50960041,0.00020038,2]
[376018867,1753823442457,-1501.5,0.00020047,3]
[376018872,1753823442477,-206.0,0.0002007,2]
[376018914,1753823442694,-460.0,0.00020108,2]
[376018917,1753823442711,-460.0,0.00020108,2]
[376018919,1753823442722,-460.0,0.00020108,2]
[376018921,1753823442732,-496.69,0.00020108,2]
[376018923,1753823442741,-876.93,0.00020108,2]
[376018925,1753823442751,-460.0,0.00020108,2]
[376018927,1753823442761,-776.03,0.00020108,2]
[376018929,1753823442770,-4300.5,0.00020109,2]
[376018931,1753823442779,-936.8,0.00020109,2]
[376018933,1753823442789,-909.65,0.00020109,2]
[376018935,1753823442799,-914.91,0.0002011,2]
[376018937,1753823442808,-825.46,0.0002011,2]
[376018939,1753823442818,-1223.64,0.00020111,2]
[376018941,1753823442827,-460.0,0.00020111,2]
[376018943,1753823442837,-2297.0,0.00020137,2]
[376018945,1753823442847,-902.50960041,0.00020176,2]
[376018947,1753823442856,-365.038207,0.00020187,2]
[376018949,1753823442866,-404.0,0.00020213,2]
[376018951,1753823442875,-1000.0,0.00020243,2]
[376018953,1753823442884,-2159.0,0.00020246,2]
[376018955,1753823442893,-969.0,0.00020246,2]
[376018957,1753823442903,-419.516,0.00020263,2]
[376018959,1753823442912,-425.682,0.00020263,2]
[376018961,1753823442922,-1851.99,0.00020283,2]
[376018963,1753823442931,-460.0,0.00020283,2]
[376018965,1753823442940,-4197.13,0.00020283,2]
[376018967,1753823442949,-1495.74,0.00020283,2]
[376018969,1753823442959,-778.11,0.00020283,2]
[376018971,1753823442968,-460.0,0.00020283,2]
[376018973,1753823442978,-994.24,0.00020283,2]
[376018975,1753823442987,-460.0,0.00020283,2]
[376018977,1753823442999,-1049.81,0.00020283,2]
[376018979,1753823443010,-472.47,0.00020283,2]
[376018981,1753823443020,-460.0,0.00020284,2]
[376018983,1753823443030,-460.0,0.00020284,2]
[376018985,1753823443040,-460.0,0.00020284,2]
[376018987,1753823443050,-460.0,0.00020284,2]
[376018989,1753823443060,-460.0,0.00020284,2]
[376018991,1753823443070,-562.0,0.00020284,2]
[376018993,1753823443080,-460.0,0.00020284,2]
[376018995,1753823443090,-460.0,0.00020284,2]
[376018997,1753823443100,-460.0,0.00020284,2]
[376018999,1753823443110,-460.0,0.00020284,2]
[376019001,1753823443120,-460.0,0.00020284,2]
[376019003,1753823443131,-460.0,0.00020284,2]
[376019005,1753823443141,-460.0,0.00020284,2]
[376019007,1753823443151,-1162.64,0.00020284,2]
[376019009,1753823443160,-1311.32,0.00020284,2]
[376019011,1753823443170,-460.0,0.00020284,2]
[376019013,1753823443181,-1501.5,0.00020289,3]
[376019015,1753823443190,-150.0,0.00020297,2]
[376019017,1753823443200,-222.706,0.00020297,2]
[376019019,1753823443209,-150.0,0.00020297,2]
[376019021,1753823443219,-150.0,0.00020297,2]
[376019023,1753823443228,-150.0,0.00020297,2]
[376019025,1753823443237,-156.280137,0.00020307,3]
[376019027,1753823443250,-902.50960041,0.00020314,3]
[376019029,1753823443259,-500.0,0.00020315,2]
[376019031,1753823443268,-260.0,0.00020357,2]
[376019033,1753823443278,-460.0,0.00020382,2]
[376019035,1753823443287,-460.0,0.00020382,2]
[376019037,1753823443298,-460.0,0.00020382,2]
[376019039,1753823443310,-496.69,0.00020382,2]
[376019041,1753823443320,-876.93,0.00020382,2]
[376019043,1753823443330,-398.73544368,0.00020382,2]
[376019075,1753823443637,-460.0,0.00019462,2]
[376019078,1753823443647,-460.0,0.00019736,2]
[376019080,1753823443656,-460.0,0.0002001,2]
[376019082,1753823443666,-460.0,0.00020284,2]
[376019084,1753823443676,-61.26455632,0.00020382,2]
[376019086,1753823443685,-776.03,0.00020382,2]
[376019088,1753823443696,-4300.5,0.00020383,2]
[376019090,1753823443706,-936.8,0.00020383,2]
[376019092,1753823443716,-331.28874484,0.00020383,2]
[376019285,1753823445749,-293.28,0.00020383,2]
[376019610,1753823463535,5000.0,0.0001879,2]
[376019611,1753823605571,241.0467725,0.00026009,120]
[376019612,1753823661459,600.0,0.0001752,2]
[376019613,1753823665077,600.0,0.00018616,2]
[376019616,1753824032601,919.24914697,0.0001879,2]
[376019617,1753824064769,1000.0,0.00018062,2]
[376019618,1753824105786,24900.0,0.00018032,2]
[376019621,1753824213247,377.350053,0.00013699,2]
[376019627,1753824522330,1155.49330702,0.0001,2]
[376019698,1753824632198,-300.0,0.0001891,2]
[376019699,1753824632208,-13.244843,0.00018911,2]
[376019814,1753824638548,-446.755157,0.00018911,2]
[376019816,1753824638558,-375.8448428,0.00018911,2]
[376019818,1753824638571,-84.1551572,0.00018911,2]
[376019821,1753824638581,-460.0,0.00018911,2]
[376019823,1753824638591,-460.0,0.00018911,2]
[376019825,1753824638600,-460.0,0.00018911,2]
[376019827,1753824638610,-1100.44,0.00018911,2]
[376019829,1753824638619,-460.0,0.00018912,2]
[376019831,1753824638629,-460.0,0.00018912,2]
[376019833,1753824638639,-460.0,0.00018912,2]
[376019835,1753824638648,-252.60607937,0.00018912,2]
[376019837,1753824638658,-460.0,0.00018912,2]
[376019839,1753824638668,-485.37018886,0.00018912,2]
[376019841,1753824638677,-460.0,0.00018912,2]
[376019843,1753824638687,-460.0,0.00018912,2]
[376019845,1753824638697,-460.0,0.00018912,2]
[376019847,1753824638707,-460.0,0.00018912,2]
[376019849,1753824638717,-460.0,0.00018912,2]
[376019851,1753824638727,-460.0,0.00018912,2]
[376019853,1753824638736,-460.0,0.00018912,2]
[376019855,1753824638746,-323.33328266,0.00018912,2]
[376019857,1753824638755,-460.0,0.00018912,2]
[376019859,1753824638765,-460.0,0.00018912,2]
[376019861,1753824638775,-460.0,0.00018912,2]
[376019863,1753824638785,-1173.0,0.00018912,2]
[376019865,1753824638796,-460.0,0.00018912,2]
[376019867,1753824638809,-264.6018132,0.00018912,2]
[376019869,1753824638822,-460.0,0.00018912,2]
[376019871,1753824638831,-239.15031631,0.00018912,2]
[376019873,1753824638841,-460.0,0.00018912,2]
[376019875,1753824638850,-460.0,0.00018912,2]
[376019877,1753824638860,-460.0,0.00018912,2]
[376019879,1753824638870,-460.0,0.00018912,2]
[376019882,1753824638880,-460.0,0.00018912,2]
[376019884,1753824638889,-460.0,0.00018912,2]
[376019886,1753824638899,-460.0,0.00018912,2]
[376019888,1753824638908,-608.87,0.00018912,2]
[376019890,1753824638918,-460.0,0.00018912,2]
[376019891,1753824638927,-2026.23,0.00018912,2]
[376019893,1753824638937,-460.0,0.00018912,2]
[376019895,1753824638947,-403.14138856,0.00018912,2]
[376019897,1753824638957,-460.0,0.00018912,2]
[376019898,1753824638967,-460.0,0.00018912,2]
[376019899,1753824638977,-857.88687693,0.00018912,2]
[376019943,1753824640259,-460.0,0.00018911,2]
[376019945,1753824640269,-460.0,0.00018911,2]
[376019947,1753824640279,-2922.90312307,0.00018912,2]
[376019949,1753824640288,-1573.2,0.00018912,2]
[376019951,1753824640298,-460.0,0.00018912,2]
[376019953,1753824640307,-460.0,0.00018912,2]
[376019955,1753824640317,-460.0,0.00018912,2]
[376019957,1753824640327,-460.0,0.00018912,2]
[376019959,1753824640337,-460.0,0.00018912,2]
[376019961,1753824640347,-472.65,0.00018912,2]
[376019963,1753824640356,-372.5291543,0.00018912,2]
[376019965,1753824640366,-860.96,0.00018912,2]
[376019967,1753824640376,-460.0,0.00018912,2]
[376019969,1753824640385,-460.0,0.00018912,2]
[376019971,1753824640395,-460.0,0.00018912,2]
[376019973,1753824640404,-460.0,0.00018912,2]
[376019975,1753824640414,-460.0,0.00018912,2]
[376019977,1753824640423,-460.0,0.00018912,2]
[376019979,1753824640432,-460.0,0.00018912,2]
[376019981,1753824640442,-460.0,0.00018912,2]
[376019983,1753824640454,-460.0,0.00018912,2]
[376019985,1753824640464,-203.66,0.00018912,2]
[376019987,1753824640474,-460.0,0.00018912,2]
[376019989,1753824640483,-460.0,0.00018912,2]
[376019991,1753824640495,-460.0,0.00018912,2]
[376019993,1753824640504,-460.0,0.00018912,2]
[376019995,1753824640514,-460.0,0.00018912,2]
[376019997,1753824640523,-460.0,0.00018912,2]
[376019999,1753824640533,-532.0,0.00018912,2]
[376020001,1753824640542,-460.0,0.00018912,2]
[376020003,1753824640551,-460.0,0.00018912,2]
[376020005,1753824640561,-460.0,0.00018913,2]
[376020007,1753824640570,-460.0,0.00018913,2]
[376020009,1753824640579,-460.0,0.00018913,2]
[376020010,1753824640588,-460.0,0.00018913,2]
[376020012,1753824640597,-460.0,0.00018913,2]
[376020014,1753824640606,-460.0,0.00018913,2]
[376020016,1753824640616,-460.0,0.00018913,2]
[376020018,1753824640630,-460.0,0.00018913,2]
[376020020,1753824640639,-397.96048078,0.00018913,2]
[376020265,1753824643237,-460.0,0.00018911,2]
[376020267,1753824643247,-62.03951922,0.00018913,2]
[376020269,1753824643256,-526.47311081,0.00018913,2]
[376020270,1753824643266,-568.04,0.00018913,2]
[376020272,1753824643276,-460.0,0.00018913,2]
[376020274,1753824643285,-460.0,0.00018913,2]
[376020276,1753824643294,-460.0,0.00018913,2]
[376020278,1753824643304,-460.0,0.00018913,2]
[376020280,1753824643313,-460.0,0.00018913,2]
[376020282,1753824643322,-126.26617871,0.00018913,2]
[376020284,1753824643335,-333.73382129,0.00018913,2]
[376020286,1753824643344,-460.0,0.00018913,2]
[376020288,1753824643354,-460.0,0.00018913,2]
[376020290,1753824643363,-460.0,0.00018913,2]
[376020292,1753824643372,-460.0,0.00018913,2]
[376020293,1753824643381,-460.0,0.00018913,2]
[376020295,1753824643392,-482.5,0.00018913,2]
[376020297,1753824643403,-460.0,0.00018913,2]
[376020299,1753824643412,-464.46344439,0.00018913,2]
[376020301,1753824643422,-460.0,0.00018913,2]
[376020303,1753824643431,-460.0,0.00018913,2]
[376020305,1753824643441,-460.0,0.00018913,2]
[376020307,1753824643456,-460.0,0.00018913,2]
[376020309,1753824643465,-460.0,0.00018913,2]
[376020311,1753824643475,-460.0,0.00018913,2]
[376020313,1753824643484,-460.0,0.00018913,2]
[376020315,1753824643495,-460.0,0.00018913,2]
[376020317,1753824643504,-257.47339977,0.00018913,2]
[376020319,1753824643514,-500.0,0.00018913,2]
[376020321,1753824643524,-460.0,0.00018913,2]
[376020323,1753824643534,-460.0,0.00018913,2]
[376020325,1753824643543,-460.0,0.00018913,2]
[376020327,1753824643553,-274.52226462,0.00018913,2]
[376020329,1753824643562,-460.0,0.00018913,2]
[376020331,1753824643572,-460.0,0.00018913,2]
[376020333,1753824643581,-780.93,0.00018913,2]
[376020335,1753824643591,-460.0,0.00018913,2]
[376020337,1753824643600,-460.0,0.00018913,2]
[376020339,1753824643610,-754.42873174,0.00018913,2]
[376020560,1753824646095,-594.13126826,0.00018913,2]
[376020562,1753824646105,-460.0,0.00018913,2]
[376020564,1753824646114,-460.0,0.00018913,2]
[376020566,1753824646123,-934.93,0.00018913,2]
[376020568,1753824646133,-460.0,0.00018913,2]
[376020569,1753824646143,-500.0,0.00018914,2]
[376020571,1753824646152,-460.0,0.00018914,2]
[376020573,1753824646162,-3567.49,0.00018914,2]
[376020576,1753824646171,-789.32,0.00018914,2]
[376020579,1753824646182,-969.2,0.00018914,2]
[376020581,1753824646191,-460.0,0.00018914,2]
[376020583,1753824646202,-1256.11,0.00019013,2]
[376020585,1753824646211,-460.0,0.00019013,2]
[376020587,1753824646220,-924.57,0.00019013,2]
[376020589,1753824646230,-926.47,0.00019013,2]
[376020591,1753824646239,-1949.36125199,0.00019015,2]
[376020594,1753824646251,-28050.63874801,0.00019015,2]
[376020596,1753824646261,-279.554329,0.00019178,2]
[376020598,1753824646271,-460.0,0.00019185,2]
[376020600,1753824646281,-460.0,0.00019185,2]
[376020602,1753824646290,-460.0,0.00019185,2]
[376020604,1753824646300,-1100.44,0.00019185,2]
[376020606,1753824646309,-460.0,0.00019185,2]
[376020608,1753824646319,-460.0,0.00019186,2]
[376020610,1753824646328,-464.34018882,0.00019186,2]
[376020612,1753824646338,-460.0,0.00019186,2]
[376020614,1753824646347,-460.0,0.00019186,2]
[376020616,1753824646356,-460.0,0.00019186,2]
[376020618,1753824646366,-17.78411516,0.00019186,2]
[376020620,1753824646377,-442.21588484,0.00019186,2]
[376020622,1753824646387,-460.0,0.00019186,2]
[376020624,1753824646396,-460.0,0.00019186,2]
[376020626,1753824646405,-460.0,0.00019186,2]
[376020628,1753824646415,-1173.0,0.00019186,2]
[376020630,1753824646424,-460.0,0.00019186,2]
[376020632,1753824646434,-460.0,0.00019186,2]
[376020634,1753824646443,-460.0,0.00019186,2]
[376020636,1753824646460,-460.0,0.00019186,2]
[376020638,1753824646470,-460.0,0.00019186,2]
[376020640,1753824646480,-460.0,0.00019186,2]
[376020642,1753824646491,-608.87,0.00019186,2]
[376020644,1753824646501,-460.0,0.00019186,2]
[376020646,1753824646510,-2026.23,0.00019186,2]
[376020647,1753824646521,-460.0,0.00019186,2]
[376020648,1753824646531,-324.52610395,0.00019186,2]
[376020649,1753824646540,-460.0,0.00019186,2]
[376020650,1753824646550,-3780.79,0.00019186,2]
[376020651,1753824646559,-1573.2,0.00019186,2]
[376020652,1753824646568,-460.0,0.00019186,2]
[376020653,1753824646578,-460.0,0.00019186,2]
[376020654,1753824646587,-460.0,0.00019186,2]
[376020655,1753824646596,-234.21922923,0.00019186,2]
[376020656,1753824646605,-460.0,0.00019186,2]
[376020657,1753824646615,-472.65,0.00019186,2]
[376020658,1753824646624,-860.96,0.00019186,2]
[376020659,1753824646633,-460.0,0.00019186,2]
[376020660,1753824646643,-460.0,0.00019186,2]
[376020661,1753824646652,-460.0,0.00019186,2]
[376020662,1753824646661,-460.0,0.00019186,2]
[376020663,1753824646670,-460.0,0.00019186,2]
[376020664,1753824646680,-460.0,0.00019186,2]
[376020665,1753824646689,-460.0,0.00019186,2]
[376020666,1753824646703,-460.0,0.00019186,2]
[376020667,1753824646713,-460.0,0.00019186,2]
[376020668,1753824646723,-460.0,0.00019186,2]
[376020669,1753824646732,-460.0,0.00019186,2]
[376020670,1753824646742,-460.0,0.00019186,2]
[376020671,1753824646751,-460.0,0.00019186,2]
[376020672,1753824646760,-532.0,0.00019186,2]
[376020673,1753824646770,-460.0,0.00019186,2]
[376020674,1753824646779,-460.0,0.00019186,2]
[376020675,1753824646789,-460.0,0.00019187,2]
[376020676,1753824646798,-460.0,0.00019187,2]
[376020677,1753824646808,-460.0,0.00019187,2]
[376020678,1753824646817,-460.0,0.00019187,2]
[376020679,1753824646827,-460.0,0.00019187,2]
[376020680,1753824646836,-460.0,0.00019187,2]
[376020681,1753824646845,-460.0,0.00019187,2]
[376020682,1753824646855,-460.0,0.00019187,2]
[376020683,1753824646865,-460.0,0.00019187,2]
[376020684,1753824646874,-460.0,0.00019187,2]
[376020685,1753824646883,-460.0,0.00019187,2]
[376020686,1753824646893,-460.0,0.00019187,2]
[376020687,1753824646902,-460.0,0.00019187,2]
[376020688,1753824646912,-460.0,0.00019187,2]
[376020689,1753824646922,-460.0,0.00019187,2]
[376020690,1753824646931,-482.5,0.00019187,2]
[376020691,1753824646941,-460.0,0.00019187,2]
[376020692,1753824646950,-460.0,0.00019187,2]
[376020693,1753824646961,-1102.65,0.00019187,2]
[376020694,1753824646970,-460.0,0.00019187,2]
[376020695,1753824646979,-460.0,0.00019187,2]
[376020696,1753824646989,-460.0,0.00019187,2]
[376020697,1753824646998,-460.0,0.00019187,2]
[376020698,1753824647007,-460.0,0.00019187,2]
[376020699,1753824647016,-460.0,0.00019187,2]
[376020700,1753824647026,-460.0,0.00019187,2]
[376020701,1753824647035,-460.0,0.00019187,2]
[376020703,1753824647044,-460.0,0.00019187,2]
[376020705,1753824647054,-780.93,0.00019187,2]
[376020707,1753824647064,-458.84583748,0.00019187,2]
[376020711,1753824647230,-1348.56,0.00019187,2]
[376020712,1753824647239,-360.46306678,0.00019187,2]
[376020713,1753824647249,-460.0,0.00019187,2]
[376020714,1753824647259,-609.1376546,0.00019187,2]
[376020715,1753824647269,-934.93,0.00019187,2]
[376020716,1753824647278,-460.0,0.00019187,2]
[376020717,1753824647288,-500.0,0.00019188,2]
[376020718,1753824647298,-460.0,0.00019188,2]
[376020719,1753824647308,-3567.49,0.00019188,2]
[376020720,1753824647318,-789.32,0.00019188,2]
[376020721,1753824647327,-969.2,0.00019188,2]
[376020722,1753824647337,-460.0,0.00019188,2]
[376020724,1753824647346,-191.9044982,0.00019246,2]
[376020725,1753824647355,-196.11743362,0.00019246,2]
[376020726,1753824647365,-500.0,0.00019246,2]
[376020727,1753824647374,-408.75249291,0.00019246,2]
[376020728,1753824647384,-841.06558547,0.00019247,2]
[376020729,1753824647393,-160.0,0.00019247,2]
[376020730,1753824647402,-160.0,0.00019247,2]
[376020731,1753824647412,-160.0,0.00019247,2]
[376020732,1753824647421,-160.0,0.00019247,2]
[376020733,1753824647431,-231.39372452,0.00019247,2]
[376020734,1753824647441,-160.0,0.00019247,2]
[376020735,1753824647456,-160.0,0.00019247,2]
[376020736,1753824647465,-214.91980558,0.00019247,2]
[376020737,1753824647476,-160.0,0.00019247,2]
[376020738,1753824647485,-526.67226028,0.00019247,2]
[376020739,1753824647496,-160.0,0.00019247,2]
[376020740,1753824647506,-216.1031716,0.00019247,2]
[376020741,1753824647515,-460.5085953,0.00019247,2]
[376020742,1753824647525,-9829.44902423,0.00019247,2]
[376020743,1753824647539,-2807.67818998,0.00019247,2]
[376020744,1753824647548,-780.43,0.00019277,3]
[376020745,1753824647558,-1256.11,0.00019287,2]
[376020746,1753824647567,-460.0,0.00019287,2]
[376020747,1753824647576,-924.57,0.00019287,2]
[376020748,1753824647586,-926.47,0.00019287,2]
[376020749,1753824647595,-200.0,0.00019288,15]
[376020750,1753824647604,-200.0,0.00019288,15]
[376020751,1753824647613,-176.77361002,0.00019288,15]
[376020752,1753824647625,-23.22638998,0.00019288,15]
[376020753,1753824647635,-200.0,0.00019288,15]
[376020754,1753824647644,-387.07849681,0.00019374,2]
[376020755,1753824647653,-17059.80685321,0.0001944,2]
[376020758,1753824828037,182.0,0.00026027,120]
[376020762,1753825094974,600.0,0.0001752,2]
[376020763,1753825098753,600.0,0.00018616,2]
[376020764,1753825115709,3012.6594746,0.000188,6]
[376020765,1753825191120,1000.0,0.00017911,2]
[376020766,1753825203102,16432.7308498,0.00017911,2]